{"text_format":"1","workbook":"xlsx","n_sheets":53,"sheets":["plan","Feuil1","Feuil2","Feuil3","Feuil4","Feuil5","Feuil6","Feuil7","Feuil8","Feuil9","Feuil10","Feuil11","Feuil12","tonneau","pt","gt","salon1","salon2","salon3","table1","table2","table3","table4","table5","table6","table7","table8","i1","i2","i3","i4","i5","i6","i7","i8","i9","i10","compte","vidange","Tarif","menu","cocktail","cocktail0","cocktailp","Bouteille","Fut","biere","Alcool","Vin","0%","chaude","Snack","soft"],"not_rendered":{"charts":0,"images":192,"macros":1,"external_links":0,"defined_names":0,"comments":0,"pivot_tables":0},"unopened":[],"bounds":{"document_bytes":16777216,"sheet_cells":100000,"rows_first":2000,"rows_last":500,"rows_between":2000,"halvings":0,"cell_chars":16384,"cell_head_chars":4096},"cells_cut":0,"cells_raw":0,"read":"whole","date_system":"1900"}

{"sheet":"plan","index":0,"n_rows":0,"n_cols":0,"rows_kept":0,"cut":false,"hidden":false,"merged":[[0,0,44,24]]}

{"sheet":"Feuil1","index":1,"n_rows":12,"n_cols":10,"rows_kept":12,"cut":false,"hidden":false,"merged":[[11,6,12,7],[11,8,12,9]]}
[]
["JUPILER",null,null,"25CL",2.2999999999999998]
["APPLETISSER",null,null,null,3.5]
["APPLETISSER",null,null,null,3.5,null,null,null,null,54]
[]
[]
[]
[]
[]
[]
[]
[null,null,null,null,null,null,"TOTAL",null,{"$f":"SUM(E:E)","v":9.3000000000000007}]

{"sheet":"Feuil2","index":2,"n_rows":12,"n_cols":9,"rows_kept":12,"cut":false,"hidden":false,"merged":[[11,6,12,7],[11,8,12,9]]}
["2023-09-06"]
["YELLOW",null,null,null,8]
["YELLOW",null,null,null,8]
["YELLOW",null,null,null,8]
["YELLOW",null,null,null,8]
["YELLOW",null,null,null,8]
["YELLOW",null,null,null,8]
["YELLOW",null,null,null,8]
["YELLOW",null,null,null,8]
[]
[]
[null,null,null,null,null,null,"TOTAL",null,{"$f":"SUM(E:E)","v":64}]

{"sheet":"Feuil3","index":3,"n_rows":12,"n_cols":9,"rows_kept":12,"cut":false,"hidden":false,"merged":[[11,6,12,7],[11,8,12,9]]}
["2023-09-06"]
[]
[]
[]
[]
[]
[]
[]
[]
[]
[]
[null,null,null,null,null,null,"TOTAL",null,{"$f":"SUM(E:E)","v":0}]

{"sheet":"Feuil4","index":4,"n_rows":12,"n_cols":9,"rows_kept":12,"cut":false,"hidden":false,"merged":[[6,0,6,2],[1,0,1,2],[2,0,2,2],[3,0,3,2],[4,0,4,2],[5,0,5,2],[16,0,16,2],[7,0,7,2],[8,0,8,2],[9,0,9,2],[10,0,10,2],[11,0,11,2],[11,8,12,9],[12,0,12,2],[13,0,13,2],[14,0,14,2],[15,0,15,2],[11,6,12,7],[17,0,17,2],[18,0,18,2],[19,0,19,2],[20,0,20,2],[21,0,21,2]]}
["2023-09-06"]
[]
[]
[]
[]
[]
[]
[]
[]
[]
[]
[null,null,null,null,null,null,"TOTAL",null,{"$f":"SUM(E:E)","v":0}]

{"sheet":"Feuil5","index":5,"n_rows":12,"n_cols":9,"rows_kept":12,"cut":false,"hidden":false,"merged":[[11,6,12,7],[11,8,12,9]]}
[]
[]
[]
[]
[]
[]
[]
[]
[]
[]
[]
[null,null,null,null,null,null,"TOTAL",null,{"$f":"SUM(E:E)","v":0}]

{"sheet":"Feuil6","index":6,"n_rows":12,"n_cols":9,"rows_kept":12,"cut":false,"hidden":false,"merged":[[11,6,12,7],[11,8,12,9]]}
[]
[]
[]
[]
[]
[]
[]
[]
[]
[]
[]
[null,null,null,null,null,null,"TOTAL",null,{"$f":"SUM(E:E)","v":0}]

{"sheet":"Feuil7","index":7,"n_rows":12,"n_cols":9,"rows_kept":12,"cut":false,"hidden":false,"merged":[[6,0,6,2],[1,0,1,2],[2,0,2,2],[3,0,3,2],[4,0,4,2],[5,0,5,2],[16,0,16,2],[7,0,7,2],[8,0,8,2],[9,0,9,2],[10,0,10,2],[11,0,11,2],[11,8,12,9],[12,0,12,2],[13,0,13,2],[14,0,14,2],[15,0,15,2],[11,6,12,7],[17,0,17,2],[18,0,18,2],[19,0,19,2],[20,0,20,2],[21,0,21,2]]}
[]
["JUPILER",null,null,"25CL",2.2999999999999998]
["APPLETISSER",null,null,null,3.5]
["APPLETISSER",null,null,null,3.5]
[]
[]
[]
[]
[]
[]
[]
[null,null,null,null,null,null,"TOTAL",null,{"$f":"SUM(E:E)","v":9.3000000000000007}]

{"sheet":"Feuil8","index":8,"n_rows":12,"n_cols":9,"rows_kept":12,"cut":false,"hidden":false,"merged":[[11,6,12,7],[11,8,12,9]]}
[]
[]
[]
[]
[]
[]
[]
[]
[]
[]
[]
[null,null,null,null,null,null,"TOTAL",null,{"$f":"SUM(E:E)","v":0}]

{"sheet":"Feuil9","index":9,"n_rows":12,"n_cols":9,"rows_kept":12,"cut":false,"hidden":false,"merged":[[11,6,12,7],[11,8,12,9]]}
[]
[]
[]
[]
[]
[]
[]
[]
[]
[]
[]
[null,null,null,null,null,null,"TOTAL",null,{"$f":"SUM(E:E)","v":0}]

{"sheet":"Feuil10","index":10,"n_rows":12,"n_cols":9,"rows_kept":12,"cut":false,"hidden":false,"merged":[[6,0,6,2],[1,0,1,2],[2,0,2,2],[3,0,3,2],[4,0,4,2],[5,0,5,2],[16,0,16,2],[7,0,7,2],[8,0,8,2],[9,0,9,2],[10,0,10,2],[11,0,11,2],[11,8,12,9],[12,0,12,2],[13,0,13,2],[14,0,14,2],[15,0,15,2],[11,6,12,7],[17,0,17,2],[18,0,18,2],[19,0,19,2],[20,0,20,2],[21,0,21,2]]}
[]
["JUPILER",null,null,"25CL",2.2999999999999998]
["APPLETISSER",null,null,null,3.5]
["APPLETISSER",null,null,null,3.5]
[]
[]
[]
[]
[]
[]
[]
[null,null,null,null,null,null,"TOTAL",null,{"$f":"SUM(E:E)","v":9.3000000000000007}]

{"sheet":"Feuil11","index":11,"n_rows":12,"n_cols":9,"rows_kept":12,"cut":false,"hidden":false,"merged":[[11,6,12,7],[11,8,12,9]]}
["2023-09-06"]
[]
[]
[]
[]
[]
[]
[]
[]
[]
[]
[null,null,null,null,null,null,"TOTAL",null,{"$f":"SUM(E:E)","v":0}]

{"sheet":"Feuil12","index":12,"n_rows":12,"n_cols":9,"rows_kept":12,"cut":false,"hidden":false,"merged":[[11,6,12,7],[11,8,12,9]]}
[]
[]
[]
[]
[]
[]
[]
[]
[]
[]
[]
[null,null,null,null,null,null,"TOTAL",null,{"$f":"SUM(E:E)","v":0}]

{"sheet":"tonneau","index":13,"n_rows":12,"n_cols":9,"rows_kept":12,"cut":false,"hidden":false,"merged":[[11,6,12,7],[11,8,12,9]]}
["2023-09-12"]
[]
[]
[]
[]
[]
[]
[]
[]
[]
[]
[null,null,null,null,null,null,"TOTAL",null,{"$f":"SUM(E:E)","v":0}]

{"sheet":"pt","index":14,"n_rows":12,"n_cols":9,"rows_kept":12,"cut":false,"hidden":false,"merged":[[11,6,12,7],[11,8,12,9]]}
["2023-09-08"]
[]
[]
[]
[]
[]
[]
[]
[]
[]
[]
[null,null,null,null,null,null,"TOTAL",null,{"$f":"SUM(E:E)","v":0}]

{"sheet":"gt","index":15,"n_rows":12,"n_cols":9,"rows_kept":12,"cut":false,"hidden":false,"merged":[[11,6,12,7],[11,8,12,9]]}
["2023-09-08"]
[]
[]
[]
[]
[]
[]
[]
[]
[]
[]
[null,null,null,null,null,null,"TOTAL",null,{"$f":"SUM(E:E)","v":0}]

{"sheet":"salon1","index":16,"n_rows":12,"n_cols":9,"rows_kept":12,"cut":false,"hidden":false,"merged":[[11,6,12,7],[11,8,12,9]]}
["2023-09-08"]
[]
[]
[]
[]
[]
[]
[]
[]
[]
[]
[null,null,null,null,null,null,"TOTAL",null,{"$f":"SUM(E:E)","v":0}]

{"sheet":"salon2","index":17,"n_rows":12,"n_cols":9,"rows_kept":12,"cut":false,"hidden":false,"merged":[[11,6,12,7],[11,8,12,9],[1,0,1,2],[2,0,2,2],[3,0,3,2],[4,0,4,2],[5,0,5,2],[6,0,6,2],[7,0,7,2],[8,0,8,2],[9,0,9,2],[10,0,10,2]]}
["2023-09-06"]
[]
[]
[]
[]
[]
[]
[]
[]
[]
[]
[null,null,null,null,null,null,"TOTAL",null,{"$f":"SUM(E:E)","v":0}]

{"sheet":"salon3","index":18,"n_rows":12,"n_cols":9,"rows_kept":12,"cut":false,"hidden":false,"merged":[[11,6,12,7],[11,8,12,9]]}
["2023-09-08"]
["THE camomille",null,null,null,2.2999999999999998]
["THE camomille",null,null,null,2.2999999999999998]
["THE camomille",null,null,null,2.2999999999999998]
["THE camomille",null,null,null,2.2999999999999998]
["THE camomille",null,null,null,2.2999999999999998]
["THE camomille",null,null,null,2.2999999999999998]
["THE camomille",null,null,null,2.2999999999999998]
["THE camomille",null,null,null,2.2999999999999998]
[]
[]
[null,null,null,null,null,null,"TOTAL",null,{"$f":"SUM(E:E)","v":18.400000000000002}]

{"sheet":"table1","index":19,"n_rows":12,"n_cols":9,"rows_kept":12,"cut":false,"hidden":false,"merged":[[1048575,4,1048575,6],[11,6,12,7],[11,8,12,9],[1,0,1,2],[2,0,2,2],[3,0,3,2],[11,11,12,12],[11,13,12,14]]}
["2023-09-08"]
["TK",null,null,"50CL",4.7]
["TK",null,null,"50CL",4.7]
["TK",null,null,"50CL",4.7]
["NORDIC BITTER",null,null,"20CL",2.7]
["NORDIC BITTER",null,null,"20CL",2.7]
[]
[]
[]
[]
[]
[null,null,null,null,null,null,"TOTAL",null,{"$f":"SUM(E:E)","v":19.5}]

{"sheet":"table2","index":20,"n_rows":12,"n_cols":9,"rows_kept":12,"cut":false,"hidden":false,"merged":[[11,11,12,12],[11,13,12,14],[11,6,12,7],[11,8,12,9],[7,0,7,2]]}
["2023-09-12"]
[]
[]
[]
[]
[]
[]
[]
[]
[]
[]
[null,null,null,null,null,null,"TOTAL",null,{"$f":"SUM(E:E)","v":0}]

{"sheet":"table3","index":21,"n_rows":12,"n_cols":9,"rows_kept":12,"cut":false,"hidden":false,"merged":[[11,6,12,7],[11,8,12,9]]}
["2023-09-08"]
[]
[]
[]
[]
[]
[]
[]
[]
[]
[]
[null,null,null,null,null,null,"TOTAL",null,{"$f":"SUM(E:E)","v":0}]

{"sheet":"table4","index":22,"n_rows":12,"n_cols":9,"rows_kept":12,"cut":false,"hidden":false,"merged":[[11,6,12,7],[11,8,12,9],[1,0,1,2],[2,0,2,2],[3,0,3,2],[4,0,4,2],[5,0,5,2],[6,0,6,2],[7,0,7,2],[8,0,8,2],[9,0,9,2]]}
["2023-09-08"]
[]
[]
[]
[]
[]
[]
[]
[]
[]
[]
[null,null,null,null,null,null,"TOTAL",null,{"$f":"SUM(E:E)","v":0}]

{"sheet":"table5","index":23,"n_rows":43,"n_cols":9,"rows_kept":43,"cut":false,"hidden":false,"merged":[[11,6,12,7],[11,8,12,9],[7,0,7,2]]}
["2023-09-08"]
["MINUTE MAID MULTIVITAMINES",null,null,"a",22.3,"Oui"]
["THE NATURE",null,null,"c",2.2999999999999998,"Oui"]
["THE NATURE",null,null,null,2.2999999999999998,"Oui"]
["THE NATURE",null,null,null,2.2999999999999998,"Oui"]
["THE NATURE",null,null,null,2.2999999999999998,"Oui"]
["THE NATURE",null,null,null,2.2999999999999998]
["APPLETISSER",null,null,null,3.5]
["BACARDI BLANC",null,null,2.2999999999999998,4.5,"Oui"]
["BACARDI BRUN",null,null,2.5,5]
["BACARDI FRAMBOISE",null,null,2.2999999999999998,4.5]
["BATIDA",null,null,2,4,"Non","TOTAL",null,{"$f":"SUM(E:E)","v":225.89999999999992}]
["YELLOW",null,null,null,8]
["YELLOW",null,null,null,8]
["YELLOW",null,null,null,8]
["YELLOW",null,null,null,8]
["YELLOW",null,null,null,8]
["YELLOW",null,null,null,8]
["YELLOW",null,null,null,8]
["YELLOW",null,null,null,8]
["BRISEE",null,null,null,25]
["BRISEE",null,null,null,25]
["BRISEE",null,null,null,25]
["FUZE TEA CHAMOMILE",null,null,null,2.7]
["FUZE TEA CHAMOMILE",null,null,null,2.7]
["FUZE TEA CHAMOMILE",null,null,null,2.7,"Oui"]
["FUZE TEA CHAMOMILE",null,null,null,2.7]
["SAUCISSE SECHE",null,null,null,2.6]
["SAUCISSE SECHE",null,null,null,2.6]
["SAUCISSE SECHE",null,null,null,2.6]
["SAUCISSE SECHE",null,null,null,2.6]
["SAUCISSE SECHE",null,null,null,2.6]
["SAUCISSE SECHE",null,null,null,2.6]
["SAUCISSE SECHE",null,null,null,2.6]
["SAUCISSE SECHE",null,null,null,2.6,"Non"]
["///",null,null,null,"//"]
["///",null,null,null,"//","Oui"]
["///",null,null,null,"//","Oui"]
["///",null,null,null,"//"]
["///",null,null,null,"//"]
["///",null,null,null,"//"]
["///",null,null,null,"//"]
["///",null,null,null,"//"]

{"sheet":"table6","index":24,"n_rows":12,"n_cols":9,"rows_kept":12,"cut":false,"hidden":false,"merged":[[11,6,12,7],[11,8,12,9]]}
["2023-09-08"]
["THE camomille",null,null,null,2.2999999999999998]
["THE camomille",null,null,null,2.2999999999999998]
["THE camomille",null,null,null,2.2999999999999998]
[]
[]
[]
[]
[]
[]
[]
[null,null,null,null,null,null,"TOTAL",null,{"$f":"SUM(E:E)","v":6.8999999999999995}]

{"sheet":"table7","index":25,"n_rows":12,"n_cols":9,"rows_kept":12,"cut":false,"hidden":false,"merged":[[11,6,12,7],[11,8,12,9]]}
["2023-09-08"]
[]
[]
[]
[]
[]
[]
[]
[]
[]
[]
[null,null,null,null,null,null,"TOTAL",null,{"$f":"SUM(E:E)","v":0}]

{"sheet":"table8","index":26,"n_rows":12,"n_cols":9,"rows_kept":12,"cut":false,"hidden":false,"merged":[[11,6,12,7],[11,8,12,9]]}
["2023-09-08"]
[]
[]
[]
[]
[]
[]
[]
[]
[]
[]
[null,null,null,null,null,null,"TOTAL",null,{"$f":"SUM(E:E)","v":0}]

{"sheet":"i1","index":27,"n_rows":12,"n_cols":9,"rows_kept":12,"cut":false,"hidden":false,"merged":[[11,6,12,7],[11,8,12,9],[2,0,2,2],[3,0,3,2],[4,0,4,2],[5,0,5,2],[6,0,6,2],[7,0,7,2]]}
[]
["WHISKY SOUR",null,null,null,7.5]
[]
[]
[]
[]
[]
[]
[]
[]
[]
[null,null,null,null,null,null,"TOTAL",null,{"$f":"SUM(E:E)","v":7.5}]

{"sheet":"i2","index":28,"n_rows":38,"n_cols":9,"rows_kept":38,"cut":false,"hidden":false,"merged":[[18,0,18,2],[19,0,19,2],[20,0,20,2],[21,0,21,2],[13,0,13,2],[14,0,14,2],[15,0,15,2],[16,0,16,2],[17,0,17,2],[11,6,12,7],[11,8,12,9],[1,0,1,2],[2,0,2,2],[3,0,3,2],[4,0,4,2],[5,0,5,2],[6,0,6,2],[7,0,7,2],[8,0,8,2],[9,0,9,2],[11,0,11,2],[12,0,12,2]]}
[]
["APPLETISSER",null,null,null,3.5]
["APPLETISSER",null,null,null,3.5]
["APPLETISSER",null,null,null,3.5]
["APPLETISSER",null,null,null,3.5]
["APPLETISSER",null,null,null,3.5]
["APPLETISSER",null,null,null,3.5]
["APPLETISSER",null,null,null,3.5]
["APPLETISSER",null,null,null,3.5]
["APPLETISSER",null,null,null,3.5]
["///",null,null,null,"//"]
["APPLETISSER",null,null,null,3.5,null,"TOTAL",null,{"$f":"SUM(E:E)","v":164.90000000000003}]
["APPLETISSER",null,null,null,3.5]
["pichet 1/4 rouge",null,null,0.25,6]
["TK",null,null,"50CL",4.7]
["TK",null,null,"50CL",4.7]
["TK",null,null,"50CL",4.7]
["TK",null,null,"50CL",4.7]
["TK",null,null,"50CL",4.7]
["TK",null,null,"50CL",4.7]
["TK",null,null,"50CL",4.7]
["TK",null,null,"50CL",4.7]
["NORDIC AGRUMES",null,null,"20CL",2.7]
["THE fruits rouge",null,null,null,2.2999999999999998]
["THE fruits rouge",null,null,null,2.2999999999999998]
["GREEN SKY",null,null,null,5.5]
["GREEN SKY",null,null,null,5.5]
["GREEN SKY",null,null,null,5.5]
["GREEN SKY",null,null,null,5.5]
["GREEN SKY",null,null,null,5.5]
["GREEN SKY",null,null,null,5.5]
["GREEN SKY",null,null,null,5.5]
["GREEN SKY",null,null,null,5.5]
["GREEN SKY",null,null,null,5.5]
["ELO",null,null,null,6.5]
["ELO",null,null,null,6.5]
["ELO",null,null,null,6.5]
["ELO",null,null,null,6.5]

{"sheet":"i3","index":29,"n_rows":12,"n_cols":9,"rows_kept":12,"cut":false,"hidden":false,"merged":[[11,6,12,7],[11,8,12,9],[1,0,1,2]]}
["2023-09-08"]
[]
[]
[]
[]
[]
[]
[]
[]
[]
[]
[null,null,null,null,null,null,"TOTAL",null,{"$f":"SUM(E:E)","v":0}]

{"sheet":"i4","index":30,"n_rows":12,"n_cols":9,"rows_kept":12,"cut":false,"hidden":false,"merged":[[11,6,12,7],[11,8,12,9]]}
["2023-09-08"]
[]
[]
[]
[]
[]
[]
[]
[]
[]
[]
[null,null,null,null,null,null,"TOTAL",null,{"$f":"SUM(E:E)","v":0}]

{"sheet":"i5","index":31,"n_rows":12,"n_cols":9,"rows_kept":12,"cut":false,"hidden":false,"merged":[[11,6,12,7],[11,8,12,9]]}
["2023-09-06"]
[]
[]
[]
[]
[]
[]
[]
[]
[]
[]
[null,null,null,null,null,null,"TOTAL",null,{"$f":"SUM(E:E)","v":0}]

{"sheet":"i6","index":32,"n_rows":12,"n_cols":9,"rows_kept":12,"cut":false,"hidden":false,"merged":[[11,6,12,7],[11,8,12,9],[1,0,1,2]]}
["2023-09-08"]
[]
[]
[]
[]
[]
[]
[]
[]
[]
[]
[null,null,null,null,null,null,"TOTAL",null,{"$f":"SUM(E:E)","v":0}]

{"sheet":"i7","index":33,"n_rows":15,"n_cols":9,"rows_kept":15,"cut":false,"hidden":false,"merged":[[11,6,12,7],[11,8,12,9]]}
["2023-09-08"]
["CHAUDFONTAINE Still",null,null,"1L",6.6]
["CHAUDFONTAINE Still",null,null,"1L",6.6]
["CHAUDFONTAINE Still",null,null,"1L",6.6]
["CHAUDFONTAINE Still",null,null,"1L",6.6]
["CHAUDFONTAINE Still",null,null,"1L",6.6]
["CHAUDFONTAINE Still",null,null,"1L",6.6]
["CHAUDFONTAINE Still",null,null,"1L",6.6]
["SPRITZ 0%",null,null,null,5]
["SPRITZ 0%",null,null,null,5]
["SPRITZ 0%",null,null,null,5]
["SPRITZ 0%",null,null,null,5,null,"TOTAL",null,{"$f":"SUM(E:E)","v":81.2}]
["SPRITZ 0%",null,null,null,5]
["SPRITZ 0%",null,null,null,5]
["SPRITZ 0%",null,null,null,5]

{"sheet":"i8","index":34,"n_rows":12,"n_cols":9,"rows_kept":12,"cut":false,"hidden":false,"merged":[[11,6,12,7],[11,8,12,9]]}
["2023-09-06"]
["THE camomille",null,null,null,2.2999999999999998]
["THE camomille",null,null,null,2.2999999999999998]
["THE camomille",null,null,null,2.2999999999999998]
["THE camomille",null,null,null,2.2999999999999998]
["THE camomille",null,null,null,2.2999999999999998]
["THE camomille",null,null,null,2.2999999999999998]
[]
[]
[]
[]
[null,null,null,null,null,null,"TOTAL",null,{"$f":"SUM(E:E)","v":13.8}]

{"sheet":"i9","index":35,"n_rows":16,"n_cols":9,"rows_kept":16,"cut":false,"hidden":false,"merged":[[11,6,12,7],[11,8,12,9]]}
[]
["LATTE MACCHIATO + Sirop",null,null,null,4.5]
["LATTE MACCHIATO + Sirop",null,null,null,4.5]
["LATTE MACCHIATO + Sirop",null,null,null,4.5]
["LATTE MACCHIATO + Sirop",null,null,null,4.5]
["LATTE MACCHIATO + Sirop",null,null,null,4.5]
["LATTE MACCHIATO + Sirop",null,null,null,4.5]
["LATTE MACCHIATO + Sirop",null,null,null,4.5]
["CORNET CARBOLO",null,null,null,6]
["CORNET CARBOLO",null,null,null,6]
["CORNET CARBOLO",null,null,null,6]
["CORNET CARBOLO",null,null,null,6,null,"TOTAL",null,{"$f":"SUM(E:E)","v":79.5}]
["CORNET CARBOLO",null,null,null,6]
["CORNET CARBOLO",null,null,null,6]
["CORNET CARBOLO",null,null,null,6]
["CORNET CARBOLO",null,null,null,6]

{"sheet":"i10","index":36,"n_rows":12,"n_cols":9,"rows_kept":12,"cut":false,"hidden":false,"merged":[[11,6,12,7],[11,8,12,9],[1,0,1,2],[2,0,2,2]]}
["2023-09-08"]
[]
[]
[]
[]
[]
[]
[]
[]
[]
[]
[null,null,null,null,null,null,"TOTAL",null,{"$f":"SUM(E:E)","v":0}]

{"sheet":"compte","index":37,"n_rows":0,"n_cols":0,"rows_kept":0,"cut":false,"hidden":false,"merged":[[0,0,1,1]]}

{"sheet":"vidange","index":38,"n_rows":4,"n_cols":8,"rows_kept":4,"cut":false,"hidden":false,"merged":[]}
[]
[]
[]
[null,null,null,null,null,null,null,"pour compter les produits, il faut le faire uniquement pour les soft et les bières."]

{"sheet":"Tarif","index":39,"n_rows":255,"n_cols":5,"rows_kept":255,"cut":false,"hidden":false,"merged":[[104,0,104,2],[105,0,105,2],[106,0,106,2],[99,0,99,2],[100,0,100,2],[101,0,101,2],[102,0,102,2],[103,0,103,2],[2,0,2,2],[1,0,1,2],[0,0,0,2],[29,0,29,2],[30,0,30,2],[42,0,42,2],[43,0,43,2],[44,0,44,2],[31,0,31,2],[32,0,32,2],[33,0,33,2],[34,0,34,2],[35,0,35,2],[41,0,41,2]]}
["APPLETISSER",null,null,null,3.5]
["JUS DE FRAISE",null,null,null,2.7]
["CECEMEL",null,null,null,3]
["CHAUDFONTAINE SPARKING ",null,null,"25CL",2.2999999999999998]
["CHAUDFONTAINE STILL",null,null,"25CL",2.2999999999999998]
["COCA COLA",null,null,"20CL",2.2999999999999998]
["COCA ZERO",null,null,"20CL",2.2999999999999998]
["FANTA",null,null,"20CL",2.2999999999999998]
["FUZE TEA CHAMOMILE",null,null,null,2.7]
["FUZE TEA CITRON",null,null,null,2.7]
["FUZE TEA PEACH",null,null,null,2.7]
["MINUTE MAID ANANAS",null,null,"20CL",2.7]
["MINUTE MAID MULTIVITAMINES",null,null,"20CL",2.7]
["MINUTE MAID ORANGE",null,null,"20CL",2.7]
["MINUTE MAID POMME CERISE",null,null,"20CL",2.7]
["MINUTE MAID TOMATE",null,null,"20CL",2.7]
["NORDIC AGRUMES",null,null,"20CL",2.7]
["NORDIC BITTER",null,null,"20CL",2.7]
["NORDIC GINGER",null,null,"20CL",2.7]
["NORDIC TONIC",null,null,"20CL",2.7]
["PERRIER",null,null,null,2.7]
["RED BULL",null,null,null,3.7]
["SPRITE",null,null,"20CL",2.2999999999999998]
["ASSIETTE PATE BOLO",null,null,null,13.5]
["CHIPS PAPRIKA",null,null,null,2]
["CORNET BOLO",null,null,null,6]
["CROQUE MONSIEUR",null,null,null,6]
["PORTION MIXTE",null,null,null,6]
["SAUCISSE SECHE",null,null,null,2.6]
["JUPILER",null,null,"25CL",2.2999999999999998]
["JUPILER",null,null,"33CL",3]
["JUPILER",null,null,"50CL",4.4000000000000004]
["TK",null,null,"25CL",3.7]
["TK",null,null,"50CL",4.7]
["HOUPPE",null,null,"25CL",3.7]
["HOUPPE",null,null,"50CL",4.7]
["Tête de mort ",null,null,"25CL",3.7]
["Tête de mort ",null,null,"33CL",4.7]
["Blanche rosé",null,null,null,3.5]
["CHAUDFONTAINE SPARKING ",null,null,"1L",6.6]
["CHAUDFONTAINE Still",null,null,"1L",6.6]
["Bouteille vin Blanc",null,null,null,18]
["VERRE DE VIN BLANC",null,null,"VERRE",3]
["PICHET 1/4 VIN BLANC",null,null,0.25,6]
["PICHET 1/2 VIN BLANC",null,null,0.5,12]
["AMARETTO 0%",null,null,null,3.5]
["BITTER 0%",null,null,null,3.5]
["CURACAO BLUE 0%",null,null,null,3.5]
["PASSOA 0%",null,null,null,3.5]
["PISANG 0%",null,null,null,3.5]
["CAFE",null,null,null,2.2999999999999998]
["CAFE VIENNOIS",null,null,null,2.9]
["CECEMEL CHAUD",null,null,null,3.3]
["CHOCOLAT VIENNOIS",null,null,null,3.9]
["DECA",null,null,null,2.2999999999999998]
["FRENCH COFFEE",null,null,null,7]
["IRISH COFFEE",null,null,null,7]
["ITALIAN COFFEE",null,null,null,7]
["LATTE FRAPPE",null,null,null,3.7]
["LATTE FRAPPE + SIROP",null,null,null,4.5]
["LATTE MACCHIATO",null,null,null,3.7]
["LATTE MACCHIATO + Sirop",null,null,null,4.5]
["OXO",null,null,null,2.2999999999999998]
["ROYCO",null,null,null,2.6]
["THE NATURE",null,null,null,2.2999999999999998]
["VIN CHAUD ",null,null,null,3.5]
["CARLSBERG",null,null,null,3.4]
["CHIMAY BLANCHE",null,null,null,4.7]
["CHIMAY BLEUE",null,null,null,4.7]
["CORNE BLACK",null,null,null,4.7]
["CORNE TRIPLE",null,null,null,4.7]
["DESPERADOS",null,null,null,4.5]
["DOMINICAINE",null,null,null,4.7]
["DUVEL",null,null,null,4.7]
["GAULOISE BLONDE",null,null,null,4.2]
["GAULOISE AMBRE",null,null,null,4.2]
["GEUSE BOUCHONNEE",null,null,null,5.5]
["HOEGAARDEN BLANCHE",null,null,null,3.5]
["JAMBES EN L'AIR",null,null,null,4.7]
["JUPILER",null,null,null,2.2000000000000002]
["KRIEK ",null,null,null,3.6]
["KWAK",null,null,null,4.7]
["LEFFE BLONDE",null,null,null,4.5]
["LEFFE BRUNE",null,null,null,4.5]
["LIEFMANS",null,null,null,3.5]
["MAREDSOUS 6°",null,null,null,4.2]
["ORVAL JEUNE",null,null,null,4.7]
["PECHE MEL' BUSH",null,null,null,4.7]
["PECHERESSE",null,null,null,3.6]
["PIETRA",null,null,null,5]
["ROCHEFORT 8°",null,null,null,4.7]
["RODENBACH",null,null,null,3.5]
["RODENBACH FRUITAGE",null,null,null,3.3]
["TETE DE MORT rouge",null,null,null,4.7]
["VICTORIA",null,null,null,4.7]
["WESTMALLE TRIPLE",null,null,null,4.7]
["Caslberg 0%",null,null,null,3.4]
["Liefmans 0%",null,null,null,3.5]
["Jupiler 0%",null,null,null,3.1]
["Bouteille vin rosé",null,null,null,18]
["Bouteille vin rouge",null,null,null,18]
["pichet 1/4 rosé",null,null,0.25,6]
["pichet 1/4 rouge",null,null,0.25,6]
["VERRE DE VIN ROSE",null,null,"VERRE",3]
["VERRE DE VIN ROUGE",null,null,"VERRE",3]
["PICHET 1/2 VIN ROSE",null,null,0.5,12]
["PICHET 1/2 VIN ROUGE",null,null,1.5,12]
["THE Menthe",null,null,null,2.2999999999999998]
["THE fruits rouge",null,null,null,2.2999999999999998]
["THE camomille",null,null,null,2.2999999999999998]
["///",null,null,null,"//"]
["ASSIETTE PATE CARBO",null,null,null,13.5]
["ASSIETTE PATE FLECHE",null,null,null,13.5]
["CHIPS SEL",null,null,null,2]
["CHIPS GRILLS",null,null,null,2]
["CORNET CARBO",null,null,null,6]
["CORNET FLECHE",null,null,null,6]
["CORNET CARBOLO",null,null,null,6]
["PORTION FROMAGE",null,null,null,6]
["PORTION SAUCISSON",null,null,null,6]
["PORTION FROMAGE + SAUCISSON",null,null,null,6]
["BLUE HAWAIIAN",null,null,null,25]
["DITCH SUCRE",null,null,null,25]
["SEX ON THE BEACH",null,null,null,25]
["BEN",null,null,null,25]
["ELO",null,null,null,25]
["5EME AVENUE",null,null,null,25]
["PINK PARADISE",null,null,null,25]
["RO-PLANTEUR",null,null,null,25]
["BRISEE",null,null,null,25]
["VIRGIN SEX ON THE BEACH",null,null,null,5.5]
["PEPINO",null,null,null,5.5]
["VIRGIN MOJITO ICE TEA",null,null,null,6]
["CENDRILLON",null,null,null,4.5]
["VIRGIN CAIPIRINHA",null,null,null,5.5]
["VERGER",null,null,null,4.0999999999999996]
["VIRGIN MOJITO",null,null,null,5]
["L'INDIEN",null,null,null,5]
["FUNNY SUNRISE",null,null,null,5.5]
["AFTERGLOW",null,null,null,4]
["RIO",null,null,null,3.5]
["BELLA LUNA",null,null,null,4.5]
["COLADA FIZZ",null,null,null,5.5]
["GREEN SKY",null,null,null,5.5]
["FLECHE 0%",null,null,null,5]
["GREEN SWEET&SOUR",null,null,null,4.5]
["SPRITZ 0%",null,null,null,5]
["AMARETTO SUNRISE",null,null,null,6.5]
["APO COCO",null,null,null,8]
["ANTOINE",null,null,null,8.5]
["BRUGAL",null,null,null,7.5]
["BEATITUDE",null,null,null,8]
["BEN",null,null,null,5.5]
["BRISEE",null,null,null,8]
["5EME AVENUE",null,null,null,6]
["CUBA LIBRE",null,null,null,5]
["DITCH SEC",null,null,null,7.5]
["DREAM FIZZ",null,null,null,7.5]
["DAIQUIRI FRAMBOISE",null,null,null,8]
["DITCH SUCRE",null,null,null,7.5]
["DEEP VALLEY",null,null,null,7.5]
["DISARONO SOUR",null,null,null,5.5]
["ELO",null,null,null,6.5]
["EXOTIQUE",null,null,null,7]
["FIZZY PUNCH",null,null,null,8]
["FUN ON THE BEACH",null,null,null,7]
["GATINA",null,null,null,8]
["GIN FIZZ",null,null,null,8]
["GRAND BLEU",null,null,null,8]
["ICE WALL",null,null,null,7]
["JE SAIS PAS",null,null,null,8.5]
["LABEL SUNRISE",null,null,null,6.5]
["LONDON COLLINS",null,null,null,6]
["LILLET",null,null,null,6]
["MISTRAL",null,null,null,7.5]
["MINT FIZZ",null,null,null,7.5]
["MIKE",null,null,null,10]
["MARGARITA",null,null,null,7.5]
["MARACUJA",null,null,null,8]
["MAI TAI",null,null,null,8.5]
["MOJITO",null,null,null,8]
["MOJITO WOODBERRIES",null,null,null,10]
["MOJITO PASSION",null,null,null,10]
["MOJITO FRAISE",null,null,null,10]
["MIJOTI ICE TEA",null,null,null,9]
["PINK PARADISE",null,null,null,8]
["PINA COLADA",null,null,null,8.5]
["PINA COLADA FRAISE",null,null,null,8.5]
["RED LABEL",null,null,null,6]
["REINETTE",null,null,null,8]
["RO-PLANTEUR",null,null,null,8]
["SEX ON THE BEACH",null,null,null,8.5]
["SPRITZ",null,null,null,7]
["SWEET APO",null,null,null,8]
["SANTO LIBRE",null,null,null,8]
["SO GOOD",null,null,null,6.5]
["SANG DU PIRATE",null,null,null,8]
["STRAWBERRY",null,null,null,7]
["TEQUILA SUNRISE",null,null,null,8]
["TORTUE",null,null,null,7]
["TWIST",null,null,null,8]
["WHITE LADY",null,null,null,6.5]
["WHISKY SOUR",null,null,null,7.5]
["YELLOW",null,null,null,8]
["HUGO SPRITZ",null,null,null,7.5]
["LONG ISLAND",null,null,null,10]
["AMARETTO",null,null,2.2999999999999998,4.5]
["BACARDI BLANC",null,null,2.2999999999999998,4.5]
["BACARDI BRUN",null,null,2.5,5]
["BACARDI FRAMBOISE",null,null,2.2999999999999998,4.5]
["BATIDA",null,null,2,4]
["CALVADOS",null,null,2.2999999999999998,4.5]
["CAPTAIN",null,null,2.2999999999999998,4.5]
["CAPTAIN APPLE",null,null,2.2999999999999998,4.5]
["COGNAC",null,null,2.2999999999999998,4.5]
["COINTREAU",null,null,2.2999999999999998,4.5]
["DON PAPA",null,null,3.5,7]
["GET 27",null,null,1.8,3.5]
["GET 31",null,null,1.8,3.5]
["GIN BOMBAY",null,null,2.2999999999999998,4.5]
["GIN TANQUERAY ROYAL",null,null,2.2999999999999998,4.5]
["GIN ORANGE",null,null,2.2999999999999998,4.5]
["HAVANA",null,null,2.2999999999999998,4.5]
["HTK (GIN)",null,null,2.5,5]
["J&B",null,null,2.2999999999999998,4.5]
["JACK DANIEL'S",null,null,2.5,5]
["JACK DANIEL'S MIEL",null,null,2.8,5.5]
["JACK DANIEL'S POMME",null,null,2.8,5.5]
["JACK DANIEL'S FIRE",null,null,2.8,5.5]
["JAGERMEISTER",null,null,2.2999999999999998,4.5]
["KIR",null,null,"/",5]
["LIMONCELLO",null,null,2.2999999999999998,4.5]
["MALIBU",null,null,2,4]
["MARTINI BLANC",null,null,2,4]
["MARTINI ROUGE",null,null,2,4]
["PASSOA",null,null,2,4]
["PETERMAN",null,null,1.7,3.3]
["PICON",null,null,"/",4.5]
["PICON BIERE",null,null,"/",5.5]
["PICON VIN BLANC",null,null,null,6]
["PINEAU DES CHARENTES",null,null,"/",3.5]
["PISANG",null,null,2,4]
["PORTO BLANC",null,null,null,3.5]
["PORTO ROUGE",null,null,null,3.5]
["PORTO PINK",null,null,2.5,5]
["RICARD",null,null,2.2999999999999998,4.5]
["SAINT JAMES BRUN",null,null,2.5,5]
["SANGRIA QUINT",null,null,"/",6.5]
["TéQUILA",null,null,2.2999999999999998,4.5]
["VODKA BLANCHE",null,null,2.2999999999999998,4.5]
["VODKA ROUGE",null,null,2.2999999999999998,4.5]
["WILLIAM LAWSON",null,null,2.2999999999999998,4.5]
["WOODBERRIES",null,null,2.2000000000000002,4.3]
["CAMPARI",null,null,2.2999999999999998,4.5]
["SOMERSBY POMME",null,null,2.2999999999999998,4.5]

{"sheet":"menu","index":40,"n_rows":0,"n_cols":0,"rows_kept":0,"cut":false,"hidden":false,"merged":[[0,0,32,18]]}

{"sheet":"cocktail","index":41,"n_rows":0,"n_cols":0,"rows_kept":0,"cut":false,"hidden":false,"merged":[[0,0,28,15]]}

{"sheet":"cocktail0","index":42,"n_rows":0,"n_cols":0,"rows_kept":0,"cut":false,"hidden":false,"merged":[[0,0,24,15]]}

{"sheet":"cocktailp","index":43,"n_rows":0,"n_cols":0,"rows_kept":0,"cut":false,"hidden":false,"merged":[[0,0,22,15]]}

{"sheet":"Bouteille","index":44,"n_rows":0,"n_cols":0,"rows_kept":0,"cut":false,"hidden":false,"merged":[[0,0,23,15]]}

{"sheet":"Fut","index":45,"n_rows":0,"n_cols":0,"rows_kept":0,"cut":false,"hidden":false,"merged":[[0,0,24,19]]}

{"sheet":"biere","index":46,"n_rows":0,"n_cols":0,"rows_kept":0,"cut":false,"hidden":false,"merged":[[0,0,23,19]]}

{"sheet":"Alcool","index":47,"n_rows":0,"n_cols":0,"rows_kept":0,"cut":false,"hidden":false,"merged":[[0,0,42,13]]}

{"sheet":"Vin","index":48,"n_rows":0,"n_cols":0,"rows_kept":0,"cut":false,"hidden":false,"merged":[[0,0,23,19]]}

{"sheet":"0%","index":49,"n_rows":0,"n_cols":0,"rows_kept":0,"cut":false,"hidden":false,"merged":[[0,0,30,21]]}

{"sheet":"chaude","index":50,"n_rows":0,"n_cols":0,"rows_kept":0,"cut":false,"hidden":false,"merged":[[0,0,35,19]]}

{"sheet":"Snack","index":51,"n_rows":0,"n_cols":0,"rows_kept":0,"cut":false,"hidden":false,"merged":[[0,0,23,20]]}

{"sheet":"soft","index":52,"n_rows":0,"n_cols":0,"rows_kept":0,"cut":false,"hidden":false,"merged":[[0,0,140,31]]}